fUST/lending_fUST_20250530
["ID","MTS","AMOUNT","RATE_DAILY","PERIOD"]
[363145542,1748598640005,-430.0,0.0002,2]
[363145544,1748598640015,-1967.3,0.0002,2]
[363145546,1748598640024,-430.0,0.0002,2]
[363145548,1748598640036,-443.67294302,0.0002,2]
[363145550,1748598640046,-430.0,0.0002,2]
[363145552,1748598640055,-430.0,0.0002,2]
[363145554,1748598640065,-103.93055103,0.0002,2]
[363145575,1748598640234,-430.0,0.00019452,2]
[363145577,1748598640243,-430.0,0.00019726,2]
[363145579,1748598640252,-8944.00944897,0.0002,2]
[363145581,1748598640262,-430.0,0.0002,2]
[363145583,1748598640271,-1226.08,0.0002,2]
[363145585,1748598640283,-571.92372288,0.0002,2]
[363145587,1748598640291,-430.0,0.0002,2]
[363145589,1748598640301,-1098.79,0.0002,2]
[363145591,1748598640310,-1146.8,0.0002,2]
[363145593,1748598640319,-430.0,0.0002,2]
[363145595,1748598640328,-240.07161103,0.0002,2]
[363146072,1748598645366,-2850.95,0.00019178,2]
[363146074,1748598645376,-488.22886426,0.00019178,2]
[363146076,1748598645386,-430.0,0.00019178,2]
[363146078,1748598645395,-7342.55,0.00019178,2]
[363146080,1748598645404,-2850.95,0.00019452,2]
[363146082,1748598645413,-430.0,0.00019452,2]
[363146084,1748598645422,-7342.55,0.00019452,2]
[363146087,1748598645431,-300.0,0.00019725,2]
[363146090,1748598645441,-2850.95,0.00019726,2]
[363146092,1748598645450,-430.0,0.00019726,2]
[363146095,1748598645458,-7342.55,0.00019726,2]
[363146098,1748598645467,-189.92838897,0.0002,2]
[363146101,1748598645477,-8721.21,0.0002,2]
[363146104,1748598645486,-430.0,0.0002,2]
[363146107,1748598645497,-430.0,0.0002,2]
[363146110,1748598645506,-430.0,0.0002,2]
[363146112,1748598645515,-532.18206887,0.0002,2]
[363146114,1748598645524,-785.35,0.0002,2]
[363146116,1748598645535,-1207.05,0.0002,2]
[363146119,1748598645545,-962.5,0.0002,2]
[363146122,1748598645555,-788.9,0.0002,2]
[363146125,1748598645565,-430.0,0.0002,2]
[363146129,1748598645574,-430.0,0.0002,2]
[363146132,1748598645584,-617.56,0.0002,2]
[363146135,1748598645593,-1189.23,0.0002,2]
[363146138,1748598645603,-5899.35,0.0002,2]
[363146141,1748598645613,-430.0,0.0002,2]
[363146144,1748598645623,-430.0,0.0002,2]
[363146146,1748598645632,-430.0,0.0002,2]
[363146149,1748598645643,-7395.45,0.0002,2]
[363146152,1748598645652,-430.0,0.0002,2]
[363146154,1748598645664,-680.28,0.0002,2]
[363146157,1748598645674,-2739.15,0.0002,2]
[363146160,1748598645683,-170.48037226,0.0002,2]
[363146163,1748598645693,-430.0,0.0002,2]
[363146166,1748598645703,-430.0,0.0002,2]
[363146169,1748598645713,-465.69,0.0002,2]
[363146172,1748598645723,-430.0,0.0002,2]
[363146175,1748598645733,-2785.31,0.0002,2]
[363146178,1748598645743,-2161.26,0.0002,2]
[363146181,1748598645755,-750.51,0.0002,2]
[363146184,1748598645767,-430.0,0.0002,2]
[363146187,1748598645777,-430.0,0.0002,2]
[363146190,1748598645789,-430.0,0.0002,2]
[363146193,1748598645800,-430.0,0.0002,2]
[363146197,1748598645811,-430.0,0.0002,2]
[363146200,1748598645821,-430.0,0.0002,2]
[363146203,1748598645831,-430.0,0.0002,2]
[363146206,1748598645842,-1597.56,0.0002,2]
[363146209,1748598645854,-430.0,0.0002,2]
[363146212,1748598645863,-430.0,0.0002,2]
[363146215,1748598645873,-430.0,0.0002,2]
[363146217,1748598645882,-430.0,0.0002,2]
[363146220,1748598645891,-430.0,0.0002,2]
[363146223,1748598645902,-1383.95,0.0002,2]
[363146226,1748598645911,-784.17,0.0002,2]
[363146228,1748598645921,-430.0,0.0002,2]
[363146230,1748598645930,-7194.69,0.0002,2]
[363146232,1748598645940,-430.0,0.0002,2]
[363146234,1748598645949,-775.45,0.0002,2]
[363146236,1748598645959,-430.0,0.0002,2]
[363146238,1748598645968,-430.0,0.0002,2]
[363146240,1748598645978,-450.1590613,0.0002,2]
[363146242,1748598645988,-2850.95,0.0002,2]
[363146244,1748598645997,-430.0,0.0002,2]
[363146245,1748598646007,-7342.55,0.0002,2]
[363146248,1748598646017,-235.70123319,0.00020052,2]
[363146249,1748598646026,-464.82802164,0.00020072,2]
[363146252,1748598646038,-500.0,0.00020152,2]
[363146253,1748598646047,-722.261522,0.00020187,2]
[363146255,1748598646056,-158.422,0.00020189,2]
[363146257,1748598646067,-223.16301204,0.00020229,2]
[363146259,1748598646076,-430.0,0.00020273,2]
[363146261,1748598646086,-430.0,0.00020273,2]
[363146263,1748598646096,-430.0,0.00020273,2]
[363146265,1748598646106,-430.0,0.00020273,2]
[363146267,1748598646115,-430.0,0.00020273,2]
[363146269,1748598646125,-430.0,0.00020273,2]
[363146271,1748598646135,-364.76377024,0.00020273,2]
[363146273,1748598646145,-430.0,0.00020273,2]
[363146275,1748598646155,-430.0,0.00020273,2]
[363146277,1748598646164,-430.0,0.00020273,2]
[363146279,1748598646174,-430.0,0.00020273,2]
[363146281,1748598646183,-430.0,0.00020273,2]
[363146283,1748598646193,-311.31931123,0.00020273,2]
[363146285,1748598646203,-430.0,0.00020273,2]
[363146287,1748598646213,-430.0,0.00020273,2]
[363146289,1748598646223,-430.0,0.00020273,2]
[363146291,1748598646233,-430.0,0.00020273,2]
[363146293,1748598646243,-430.0,0.00020273,2]
[363146295,1748598646253,-224.65348253,0.00020273,2]
[363146297,1748598646264,-430.0,0.00020273,2]
[363146299,1748598646273,-430.0,0.00020273,2]
[363146301,1748598646284,-430.0,0.00020273,2]
[363146303,1748598646294,-430.0,0.00020273,2]
[363146305,1748598646304,-430.0,0.00020273,2]
[363146307,1748598646314,-430.0,0.00020273,2]
[363146309,1748598646323,-430.0,0.00020273,2]
[363146310,1748598646333,-241.25863601,0.00020273,2]
[363146312,1748598646343,-430.0,0.00020273,2]
[363146314,1748598646352,-430.0,0.00020273,2]
[363146316,1748598646362,-439.60557889,0.00020273,2]
[363146318,1748598646372,-430.0,0.00020273,2]
[363146320,1748598646381,-430.0,0.00020273,2]
[363146322,1748598646391,-430.0,0.00020273,2]
[363146324,1748598646401,-430.0,0.00020273,2]
[363146326,1748598646412,-604.19100312,0.00020273,2]
[363146328,1748598646422,-430.0,0.00020273,2]
[363146330,1748598646432,-694.32,0.00020273,2]
[363146332,1748598646442,-672.98,0.00020273,2]
[363146334,1748598646453,-430.0,0.00020273,2]
[363146336,1748598646463,-494.002741,0.00020273,2]
[363146338,1748598646473,-430.0,0.00020273,2]
[363146340,1748598646483,-430.0,0.00020273,2]
[363146342,1748598646493,-430.0,0.00020273,2]
[363146344,1748598646502,-430.0,0.00020273,2]
[363146346,1748598646513,-1523.22,0.00020273,2]
[363146348,1748598646523,-447.91,0.00020273,2]
[363146350,1748598646534,-430.0,0.00020273,2]
[363146352,1748598646544,-430.0,0.00020273,2]
[363146354,1748598646554,-430.0,0.00020273,2]
[363146356,1748598646564,-430.0,0.00020273,2]
[363146358,1748598646574,-430.0,0.00020273,2]
[363146360,1748598646584,-430.0,0.00020273,2]
[363146362,1748598646594,-430.0,0.00020273,2]
[363146364,1748598646605,-532.73658176,0.00020273,2]
[363146366,1748598646615,-1434.38,0.00020273,2]
[363146368,1748598646624,-430.0,0.00020273,2]
[363146370,1748598646634,-1598.35,0.00020273,2]
[363146372,1748598646644,-430.0,0.00020273,2]
[363146374,1748598646654,-430.0,0.00020273,2]
[363146376,1748598646664,-430.0,0.00020273,2]
[363146378,1748598646674,-430.0,0.00020273,2]
[363146380,1748598646684,-430.0,0.00020273,2]
[363146382,1748598646693,-559.17,0.00020273,2]
[363146384,1748598646703,-430.0,0.00020273,2]
[363146386,1748598646712,-430.0,0.00020273,2]
[363146388,1748598646722,-430.0,0.00020273,2]
[363146390,1748598646732,-430.0,0.00020273,2]
[363146392,1748598646743,-430.0,0.00020273,2]
[363146394,1748598646753,-479.41191568,0.00020273,2]
[363146396,1748598646763,-430.0,0.00020273,2]
[363146398,1748598646774,-430.0,0.00020273,2]
[363146400,1748598646786,-1074.18,0.00020273,2]
[363146402,1748598646796,-430.0,0.00020273,2]
[363146404,1748598646807,-430.0,0.00020273,2]
[363146406,1748598646818,-430.0,0.00020273,2]
[363146408,1748598646828,-430.0,0.00020273,2]
[363146410,1748598646838,-382.51369007,0.00020273,2]
[363146412,1748598646848,-430.0,0.00020273,2]
[363146414,1748598646859,-4378.87,0.00020273,2]
[363146416,1748598646869,-430.0,0.00020273,2]
[363146418,1748598646880,-430.0,0.00020273,2]
[363146420,1748598646890,-430.0,0.00020273,2]
[363146422,1748598646900,-572.77,0.00020273,2]
[363146424,1748598646909,-430.0,0.00020273,2]
[363146426,1748598646919,-7194.52,0.00020273,2]
[363146428,1748598646929,-2375.51,0.00020273,2]
[363146430,1748598646938,-430.0,0.00020273,2]
[363146432,1748598646948,-486.48,0.00020273,2]
[363146434,1748598646958,-430.0,0.00020273,2]
[363146436,1748598646967,-2332.2,0.00020273,2]
[363146438,1748598646977,-485.20554339,0.00020273,2]
[363146440,1748598646986,-430.0,0.00020273,2]
[363146442,1748598646996,-430.0,0.00020273,2]
[363146444,1748598647006,-430.0,0.00020273,2]
[363146446,1748598647016,-430.0,0.00020273,2]
[363146448,1748598647026,-1967.3,0.00020273,2]
[363146450,1748598647038,-430.0,0.00020273,2]
[363146452,1748598647047,-430.0,0.00020273,2]
[363146454,1748598647057,-430.0,0.00020273,2]
[363146456,1748598647066,-9047.94,0.00020273,2]
[363146458,1748598647076,-430.0,0.00020273,2]
[363146460,1748598647085,-1226.08,0.00020273,2]
[363146462,1748598647095,-430.0,0.00020273,2]
[363146464,1748598647104,-1098.79,0.00020273,2]
[363146466,1748598647114,-1146.8,0.00020273,2]
[363146468,1748598647124,-430.0,0.00020273,2]
[363146470,1748598647134,-430.0,0.00020273,2]
[363146472,1748598647144,-8721.21,0.00020273,2]
[363146474,1748598647153,-430.0,0.00020273,2]
[363146476,1748598647162,-430.0,0.00020273,2]
[363146478,1748598647173,-430.0,0.00020273,2]
[363146479,1748598647182,-430.0,0.00020273,2]
[363146482,1748598647193,-689.62777958,0.00020273,2]
[363147136,1748598655808,3061.0,0.00024658,120]
[363147606,1748598711870,425.6,0.00021918,60]
[363147607,1748598743427,424.9,0.00024658,120]
[363147609,1748599051904,4345.0,0.00024658,120]
[363147611,1748599247212,500.0,0.00024658,120]
[363147629,1748599501491,243.89,0.000154,2]
[363147669,1748599561699,91.85825292,0.00013699,2]
[363147670,1748599561722,558.17711608,0.00013699,2]
[363147673,1748599770121,-517.20508424,0.00016139,2]
[363147674,1748599770144,-2171.58290058,0.00016638,2]
[363147730,1748599836878,-160.0,0.00016804,2]
[363147731,1748599836888,-265.629737,0.0001698,2]
[363147732,1748599836898,-391.927639,0.00017508,2]
[363147733,1748599836908,-211.81844486,0.00017772,2]
[363147734,1748599836919,-1162.12816866,0.00017873,2]
[363147735,1748599837044,-323.16802124,0.00017873,2]
[363147736,1748599837055,-174.809554,0.0001806,2]
[363147737,1748599837064,-244.0,0.00018706,2]
[363147738,1748599837074,-26.76821673,0.00018706,2]
[363147739,1748599837087,-1173.23178327,0.00018706,2]
[363147740,1748599837097,-300.0,0.00018707,2]
[363147741,1748599837107,-300.0,0.00018707,2]
[363147742,1748599837116,-10000.0,0.00018708,2]
[363147743,1748599837126,-446.52346102,0.00019078,2]
[363147744,1748599837135,-430.0,0.00019178,2]
[363147745,1748599837145,-430.0,0.00019178,2]
[363147746,1748599837155,-433.96152516,0.00019178,2]
[363147747,1748599837164,-430.0,0.00019178,2]
[363147748,1748599837174,-502.99050234,0.00019178,2]
[363147749,1748599837188,-430.0,0.00019178,2]
[363147750,1748599837197,-430.0,0.00019178,2]
[363147751,1748599837207,-430.0,0.00019178,2]
[363147752,1748599837217,-430.0,0.00019178,2]
[363147753,1748599837227,-625.44,0.00019178,2]
[363147754,1748599837236,-430.0,0.00019178,2]
[363147755,1748599837245,-578.10679984,0.00019178,2]
[363147756,1748599837256,-488.40528453,0.00019178,2]
[363147757,1748599837265,-430.0,0.00019178,2]
[363147758,1748599837275,-430.0,0.00019178,2]
[363147759,1748599837285,-439.0,0.00019178,2]
[363147760,1748599837294,-389.30021668,0.00019178,2]
[363147801,1748599838097,-40.69978332,0.00019178,2]
[363147803,1748599838107,-430.0,0.00019178,2]
[363147805,1748599838117,-430.0,0.00019178,2]
[363147807,1748599838127,-430.0,0.00019178,2]
[363147809,1748599838136,-430.0,0.00019178,2]
[363147811,1748599838146,-430.0,0.00019178,2]
[363147813,1748599838156,-430.0,0.00019178,2]
[363147815,1748599838166,-430.0,0.00019178,2]
[363147817,1748599838176,-560.15329504,0.00019178,2]
[363147820,1748599838189,-430.0,0.00019178,2]
[363147822,1748599838199,-430.0,0.00019178,2]
[363147824,1748599838208,-430.0,0.00019178,2]
[363147826,1748599838217,-430.0,0.00019178,2]
[363147828,1748599838227,-430.0,0.00019178,2]
[363147830,1748599838236,-539.65184117,0.00019178,2]
[363147831,1748599838245,-475.69269423,0.00019178,2]
[363147833,1748599838260,-430.0,0.00019178,2]
[363147835,1748599838270,-370.59350234,0.00019178,2]
[363147837,1748599838279,-430.0,0.00019178,2]
[363147839,1748599838288,-430.0,0.00019178,2]
[363147841,1748599838298,-430.0,0.00019178,2]
[363147843,1748599838307,-374.36113551,0.00019178,2]
[363147845,1748599838316,-1350.74,0.00019178,2]
[363147847,1748599838326,-430.0,0.00019178,2]
[363147849,1748599838336,-430.0,0.00019178,2]
[363147851,1748599838345,-430.0,0.00019178,2]
[363147853,1748599838355,-430.0,0.00019178,2]
[363147855,1748599838363,-430.0,0.00019178,2]
[363147857,1748599838373,-430.0,0.00019178,2]
[363147859,1748599838383,-430.0,0.00019178,2]
[363147861,1748599838393,-430.0,0.00019178,2]
[363147863,1748599838402,-1255.09,0.00019178,2]
[363147865,1748599838412,-1398.56,0.00019178,2]
[363147867,1748599838422,-430.0,0.00019178,2]
[363147869,1748599838431,-430.0,0.00019178,2]
[363147871,1748599838440,-430.0,0.00019178,2]
[363147873,1748599838450,-430.0,0.00019178,2]
[363147875,1748599838463,-430.0,0.00019178,2]
[363147877,1748599838473,-430.0,0.00019178,2]
[363147879,1748599838483,-442.67,0.00019178,2]
[363147881,1748599838492,-430.0,0.00019178,2]
[363147883,1748599838504,-430.0,0.00019178,2]
[363147884,1748599838514,-850.39,0.00019178,2]
[363147886,1748599838524,-430.0,0.00019178,2]
[363147888,1748599838534,-1666.50264881,0.00019178,2]
[363148245,1748599843054,-265.08175579,0.00019178,2]
[363148252,1748599843109,-211.77120038,0.00019178,2]
[363148254,1748599843118,-430.0,0.00019178,2]
[363148256,1748599843128,-430.0,0.00019178,2]
[363148258,1748599843138,-430.0,0.00019178,2]
[363148260,1748599843148,-453.44,0.00019178,2]
[363148262,1748599843159,-4983.7,0.00019178,2]
[363148264,1748599843169,-907.89,0.00019178,2]
[363148266,1748599843179,-430.0,0.00019178,2]
[363148268,1748599843194,-430.0,0.00019178,2]
[363148270,1748599843203,-430.0,0.00019178,2]
[363148272,1748599843214,-6118.79,0.00019178,2]
[363148274,1748599843225,-430.0,0.00019178,2]
[363148276,1748599843234,-2375.79,0.00019178,2]
[363148278,1748599843244,-430.0,0.00019178,2]
[363148280,1748599843254,-1557.44,0.00019178,2]
[363148282,1748599843267,-1846.32,0.00019178,2]
[363148284,1748599843276,-430.0,0.00019178,2]
[363148286,1748599843286,-1005.88,0.00019178,2]
[363148288,1748599843296,-781.05,0.00019178,2]
[363148290,1748599843305,-430.0,0.00019178,2]
[363148292,1748599843314,-7162.95,0.00019178,2]
[363148294,1748599843324,-430.0,0.00019178,2]
[363148296,1748599843334,-991.03,0.00019178,2]
[363148298,1748599843344,-410.0,0.00019178,2]
[363148300,1748599843354,-441.6516569,0.00019178,2]
[363148302,1748599843363,-1880.61,0.00019178,2]
[363148304,1748599843372,-430.0,0.00019178,2]
[363148306,1748599843381,-970.64,0.00019178,2]
[363148308,1748599843391,-430.0,0.00019178,2]
[363148309,1748599843401,-430.0,0.00019178,2]
[363148311,1748599843411,-430.0,0.00019178,2]
[363148313,1748599843420,-469.96965538,0.00019178,2]
[363148315,1748599843429,-430.0,0.00019178,2]
[363148317,1748599843439,-869.87,0.00019178,2]
[363148319,1748599843448,-430.0,0.00019178,2]
[363148321,1748599843457,-430.0,0.00019178,2]
[363148323,1748599843467,-430.0,0.00019178,2]
[363148325,1748599843477,-6904.29,0.00019178,2]
[363148327,1748599843487,-2282.62,0.00019178,2]
[363148329,1748599843496,-430.0,0.00019178,2]
[363148332,1748599843506,-625.72,0.00019178,2]
[363148334,1748599843520,-430.0,0.00019178,2]
[363148336,1748599843530,-430.0,0.00019178,2]
[363148338,1748599843540,-514.63,0.00019178,2]
[363148340,1748599843549,-802.09,0.00019178,2]
[363148342,1748599843559,-430.0,0.00019178,2]
[363148344,1748599843569,-430.0,0.00019178,2]
[363148346,1748599843579,-1801.05,0.00019178,2]
[363148348,1748599843588,-430.0,0.00019178,2]
[363148350,1748599843598,-430.0,0.00019178,2]
[363148352,1748599843607,-430.0,0.00019178,2]
[363148354,1748599843617,-430.0,0.00019178,2]
[363148356,1748599843626,-4916.12,0.00019178,2]
[363148358,1748599843635,-430.0,0.00019178,2]
[363148361,1748599843652,-657.41,0.00019178,2]
[363148363,1748599843665,-430.0,0.00019178,2]
[363148365,1748599843675,-566.9,0.00019178,2]
[363148367,1748599843685,-443.71481268,0.00019178,2]
[363148369,1748599843695,-430.0,0.00019178,2]
[363148371,1748599843705,-430.0,0.00019178,2]
[363148373,1748599843715,-6162.88,0.00019178,2]
[363148375,1748599843725,-430.0,0.00019178,2]
[363148377,1748599843735,-259.92374667,0.00019178,2]
[363148380,1748599843746,-430.0,0.00019178,2]
[363148382,1748599843757,-430.0,0.00019178,2]
[363148384,1748599843769,-430.0,0.00019178,2]
[363148386,1748599843779,-625.42,0.00019178,2]
[363148388,1748599843788,-430.0,0.00019178,2]
[363148390,1748599843798,-430.0,0.00019178,2]
[363148392,1748599843808,-430.0,0.00019178,2]
[363148394,1748599843817,-430.0,0.00019178,2]
[363148396,1748599843828,-2321.09,0.00019178,2]
[363148398,1748599843838,-299.23761816,0.00019178,2]
[363148400,1748599843847,-386.61451828,0.00019178,2]
[363148402,1748599843858,-430.0,0.00019178,2]
[363148404,1748599843868,-430.0,0.00019178,2]
[363148406,1748599843878,-414.12423501,0.00019178,2]
[363148408,1748599843888,-653.47,0.00019178,2]
[363148410,1748599843898,-430.0,0.00019178,2]
[363148412,1748599843907,-646.21,0.00019178,2]
[363148414,1748599843916,-518.98034792,0.00019178,2]
[363148416,1748599843925,-430.0,0.00019178,2]
[363148418,1748599843935,-383.5806818,0.00019178,2]
[363148420,1748599843945,-530.12397026,0.00019178,2]
[363148422,1748599843954,-1153.29,0.00019178,2]
[363148424,1748599843963,-430.0,0.00019178,2]
[363148426,1748599843973,-430.0,0.00019178,2]
[363148428,1748599843984,-430.0,0.00019178,2]
[363148430,1748599843994,-430.0,0.00019178,2]
[363148433,1748599844004,-431.06439751,0.00019178,2]
[363148435,1748599844016,-430.0,0.00019178,2]
[363148437,1748599844025,-430.0,0.00019178,2]
[363148439,1748599844035,-887.53,0.00019178,2]
[363148441,1748599844045,-200.35583308,0.00019178,2]
[363148443,1748599844054,-5995.57,0.00019178,2]
[363148445,1748599844064,-1053.86,0.00019178,2]
[363148447,1748599844074,-430.0,0.00019178,2]
[363148449,1748599844083,-430.0,0.00019178,2]
[363148451,1748599844092,-430.0,0.00019178,2]
[363148453,1748599844102,-430.0,0.00019178,2]
[363148455,1748599844111,-430.0,0.00019178,2]
[363148457,1748599844120,-559.53535596,0.00019178,2]
[363148459,1748599844130,-430.0,0.00019178,2]
[363148461,1748599844139,-430.0,0.00019178,2]
[363148463,1748599844149,-433.70165519,0.00019178,2]
[363148465,1748599844158,-430.0,0.00019178,2]
[363148467,1748599844168,-430.0,0.00019178,2]
[363148469,1748599844178,-430.0,0.00019178,2]
[363148471,1748599844192,-814.95,0.00019178,2]
[363148473,1748599844201,-199.778596,0.00019178,2]
[363148475,1748599844211,-405.0,0.00019296,2]
[363148477,1748599844220,-150.0,0.00019423,2]
[363148480,1748599844231,-430.0,0.00019452,2]
[363148482,1748599844241,-430.0,0.00019452,2]
[363148484,1748599844250,-219.87853009,0.00019452,2]
[363148486,1748599844261,-625.44,0.00019452,2]
[363148487,1748599844270,-430.0,0.00019452,2]
[363148489,1748599844279,-377.73940838,0.00019452,2]
[363148492,1748599844289,-576.35559962,0.00019452,2]
[363148494,1748599844298,-439.0,0.00019452,2]
[363148496,1748599844308,-430.0,0.00019452,2]
[363148498,1748599844318,-430.0,0.00019452,2]
[363148500,1748599844327,-430.0,0.00019452,2]
[363148502,1748599844338,-430.0,0.00019452,2]
[363148504,1748599844347,-430.0,0.00019452,2]
[363148506,1748599844356,-430.0,0.00019452,2]
[363148508,1748599844366,-430.0,0.00019452,2]
[363148510,1748599844376,-430.0,0.00019452,2]
[363148512,1748599844385,-430.0,0.00019452,2]
[363148514,1748599844395,-430.0,0.00019452,2]
[363148516,1748599844405,-430.0,0.00019452,2]
[363148518,1748599844414,-430.0,0.00019452,2]
[363148520,1748599844423,-442.76090061,0.00019452,2]
[363148522,1748599844433,-169.33632081,0.00019452,2]
[363148524,1748599844442,-1350.74,0.00019452,2]
[363148526,1748599844452,-430.0,0.00019452,2]
[363148528,1748599844461,-430.0,0.00019452,2]
[363148529,1748599844471,-430.0,0.00019452,2]
[363148531,1748599844480,-430.0,0.00019452,2]
[363148533,1748599844491,-430.0,0.00019452,2]
[363148535,1748599844501,-430.0,0.00019452,2]
[363148537,1748599844511,-430.0,0.00019452,2]
[363148539,1748599844521,-430.0,0.00019452,2]
[363148541,1748599844530,-1255.09,0.00019452,2]
[363148543,1748599844540,-1398.56,0.00019452,2]
[363148545,1748599844549,-430.0,0.00019452,2]
[363148547,1748599844563,-430.0,0.00019452,2]
[363148549,1748599844574,-430.0,0.00019452,2]
[363148551,1748599844583,-430.0,0.00019452,2]
[363148553,1748599844593,-539.36963574,0.00019452,2]
[363148555,1748599844604,-430.0,0.00019452,2]
[363148557,1748599844613,-442.67,0.00019452,2]
[363148559,1748599844623,-430.0,0.00019452,2]
[363148561,1748599844632,-430.0,0.00019452,2]
[363148563,1748599844642,-321.76660609,0.00019452,2]
[363148565,1748599844651,-430.0,0.00019452,2]
[363148567,1748599844660,-430.0,0.00019452,2]
[363148569,1748599844670,-430.0,0.00019452,2]
[363148571,1748599844679,-453.44,0.00019452,2]
[363148573,1748599844688,-4983.7,0.00019452,2]
[363148575,1748599844698,-907.89,0.00019452,2]
[363148577,1748599844707,-430.0,0.00019452,2]
[363148579,1748599844716,-430.0,0.00019452,2]
[363148581,1748599844725,-430.0,0.00019452,2]
[363148583,1748599844735,-6118.79,0.00019452,2]
[363148585,1748599844744,-430.0,0.00019452,2]
[363148587,1748599844753,-2375.79,0.00019452,2]
[363148589,1748599844764,-430.0,0.00019452,2]
[363148591,1748599844773,-1557.44,0.00019452,2]
[363148593,1748599844782,-1846.32,0.00019452,2]
[363148595,1748599844792,-430.0,0.00019452,2]
[363148597,1748599844801,-1005.88,0.00019452,2]
[363148599,1748599844810,-781.05,0.00019452,2]
[363148601,1748599844820,-430.0,0.00019452,2]
[363148603,1748599844830,-7162.95,0.00019452,2]
[363148605,1748599844839,-430.0,0.00019452,2]
[363148607,1748599844848,-991.03,0.00019452,2]
[363148609,1748599844857,-1880.61,0.00019452,2]
[363148611,1748599844867,-430.0,0.00019452,2]
[363148613,1748599844876,-970.64,0.00019452,2]
[363148615,1748599844885,-430.0,0.00019452,2]
[363148617,1748599844895,-449.07279345,0.00019452,2]
[363148619,1748599844905,-430.0,0.00019452,2]
[363148621,1748599844914,-430.0,0.00019452,2]
[363148623,1748599844924,-869.87,0.00019452,2]
[363148625,1748599844933,-430.0,0.00019452,2]
[363148627,1748599844942,-430.0,0.00019452,2]
[363148629,1748599844951,-6904.29,0.00019452,2]
[363148630,1748599844960,-2282.62,0.00019452,2]
[363148632,1748599844969,-430.0,0.00019452,2]
[363148634,1748599844979,-625.72,0.00019452,2]
[363148636,1748599844988,-430.0,0.00019452,2]
[363148638,1748599844997,-430.0,0.00019452,2]
[363148640,1748599845006,-430.0,0.00019452,2]
[363148642,1748599845017,-514.63,0.00019452,2]
[363148644,1748599845026,-802.09,0.00019452,2]
[363148646,1748599845036,-430.0,0.00019452,2]
[363148648,1748599845045,-430.0,0.00019452,2]
[363148650,1748599845054,-1801.05,0.00019452,2]
[363148652,1748599845064,-430.0,0.00019452,2]
[363148654,1748599845073,-430.0,0.00019452,2]
[363148656,1748599845082,-430.0,0.00019452,2]
[363148658,1748599845091,-430.0,0.00019452,2]
[363148659,1748599845100,-4916.12,0.00019452,2]
[363148661,1748599845109,-564.30338702,0.00019452,2]
[363148663,1748599845119,-657.41,0.00019452,2]
[363148665,1748599845128,-430.0,0.00019452,2]
[363148667,1748599845138,-566.9,0.00019452,2]
[363148669,1748599845147,-430.0,0.00019452,2]
[363148671,1748599845157,-430.0,0.00019452,2]